Cogmind - Beta 14 @@@ ROGUE MODE // 2024.10.30 @ 20:16:22 Player: weedlord420 Result: Self-destructed Performance ------------- Evolutions (2) 1000 Regions Visited (9) 1800 Robots Destroyed (181) 905 Value Destroyed (5497) 5497 Prototype IDs (31) 620 Alien Tech Used (0) 0 Bonus (1671) 1671 TOTAL SCORE: 11493 Bonus ------- High Alert Combat Kills 581 Follower Combat Kills 59 Entered Garrisons 200 Used RIF Installer 1000 Aligned with FarCom 300 Friendly Fire -469 Cogmind --------- Core Integrity 47/550 Matter 249/300 Energy 125/125 System Corruption 10% Temperature Cool (0) Movement Walking (120) Location -8/Materials Parts ------- > --- POWER (1) -------- Light Ion Engine > --- PROPULSION (2) --- Improved Carbon-fiber Leg Improved Carbon-fiber Leg > --- UTILITY (5) ------ Advanced Targeting Computer Advanced Targeting Computer Improved Weapon Cycler > --- WEAPON (3) ------- Heavy Assault Rifle High-powered Shotgun > --- INVENTORY (5) ---- Improved Heat Sink Superbattery (1500) Relay Coupler [Sentry] (28) Relay Coupler [Hunter] (21) Improved Plasma Cutter Peak State ------------ > --- POWER ------------ Neutrino Core > --- PROPULSION ------- Armored Huge Wheel > --- UTILITY ---------- Large Storage Unit Advanced Targeting Computer Advanced Targeting Computer Improved Weapon Cycler Advanced Trap Extractor > --- WEAPON ----------- Spread Laser Gauss Rifle Mass Driver > --- INVENTORY -------- Light Nuclear Core Armored Medium Treads Improved Coolant Injector Superbattery Advanced Targeting Computer Improved Transmission Jammer Relay Coupler [Sentry] Variable Charge Gun Assault Rifle Heavy Shock Bomb Launcher Mini Grenade Launcher Improved Datajack Improved Plasma Cutter Spear Lance [Rating: 52] Favorites ----------- Power Heavy Ion Engine Engine Heavy Ion Engine Power Core Nuclear Core Propulsion Wheel Treads Armored Medium Treads Leg Improved Carbon-fiber Leg Wheel Wheel Flight Unit Improved Flight Unit Utility Advanced Targeting Computer Device Improved Heat Sink Storage Large Storage Unit Processor Advanced Targeting Computer Hackware Relay Coupler [Grunt] Protection Improved Utility Shielding Weapon Spread Laser Energy Gun Spread Laser Energy Cannon Advanced Beam Cannon Ballistic Gun Assault Rifle Ballistic Cannon Mass Driver Launcher Mini Grenade Launcher Impact Weapon Flail Piercing Weapon Lance Special Melee Weapon Improved Datajack Build | -11 -10 -10 -9 -9 -9 -8 -8 -8 -8 ------- Run | Yrd Mat Min Mat Min Exi Min Mat Gar Mat Slots Evolved 4 | . . . 2 . . . 2 . . Power . | . . . . . . . . . . Propulsion . | . . . . . . . . . . Utility 3 | . . . 2 . . . 1 . . Weapon 1 | . . . . . . . 1 . . Parts Attached 154 | 6 13 10 32 6 . 5 30 47 5 Power 16 | 1 1 1 3 . . . 4 6 . Engine 11 | 1 1 . 2 . . . 4 3 . Core 5 | . . 1 1 . . . . 3 . Reactor . | . . . . . . . . . . Propulsion 21 | 2 1 2 6 . . 1 3 4 2 Treads 3 | . . . . . . . . 3 . Leg 2 | . . . . . . . . . 2 Wheel 15 | 2 1 1 6 . . 1 3 1 . Hover . | . . . . . . . . . . Flight 1 | . . 1 . . . . . . . Utility 28 | 1 2 1 8 . . . 5 10 1 Device 10 | . . 1 2 . . . 2 5 . Storage 4 | 1 1 . 1 . . . 1 . . Processor 6 | . 1 . 3 . . . 1 . 1 Hackware 3 | . . . . . . . . 3 . Protection 5 | . . . 2 . . . 1 2 . Artifact . | . . . . . . . . . . Weapon 89 | 2 9 6 15 6 . 4 18 27 2 Energy Gun 16 | . . . 1 . . . 9 6 . Energy Cannon 21 | . 2 3 9 3 . 1 3 . . Ballistic Gun 16 | 2 3 2 1 . . 1 2 3 2 Ballistic Cannon 4 | . . . . . . . . 4 . Launcher 15 | . 3 . 1 3 . 2 2 4 . Special Weapon . | . . . . . . . . . . Impact Weapon 3 | . 1 . 2 . . . . . . Slashing Weapon . | . . . . . . . . . . Piercing Weapon 9 | . . . . . . . 1 8 . Special Melee Weapon 5 | . . 1 1 . . . 1 2 . Unidentified Prototypes 6 | . . 1 2 . . . 3 . . Parts Lost 46 | . 4 1 12 . . 1 3 14 11 Power 7 | . 1 . 2 . . . . 3 1 Propulsion 10 | . 1 . 6 . . . 1 2 . Utility 13 | . 1 . . . . . 2 3 7 Weapon 16 | . 1 1 4 . . 1 . 6 3 Highest Loss Streak 11 | . 3 1 4 . . 1 2 8 11 To Critical Strikes . | . . . . . . . . . . Average Slot Usage (%) 94 | . 92 91 93 100 100 99 96 89 97 Engine 8 | . 13 . 8 11 11 11 9 6 9 Core 1 | . . 13 2 . . . . 2 . Treads 2 | . . . . . . . . 8 10 Wheel 16 | . 26 28 19 22 22 22 15 4 . Device 7 | . . 6 4 11 11 11 10 9 9 Storage 10 | . 14 14 11 11 11 11 9 9 8 Processor 16 | . 8 . 21 22 22 22 17 18 18 Hackware 1 | . . . . . . . . 7 8 Protection 2 | . . . 5 . . . 7 . . Energy Gun 5 | . . . . . . . 13 9 . Energy Cannon 8 | . 5 12 9 20 22 13 11 . . Ballistic Gun 5 | . 19 14 7 . . 3 . 2 17 Launcher 1 | . 1 . . 1 . 5 . 3 . Piercing Weapon 1 | . . . . . . . . 5 8 Peak Build Rating 52 | 6 9 16 24 24 25 25 39 52 44 Average Rating 26 | 3 6 12 21 24 24 24 31 40 40 On Entrance 20 | . 6 9 15 24 24 25 24 35 44 Naked Turns . | . . . . . . . . . . Heaviest Build 55 | 14 31 35 38 37 37 37 46 55 35 Greatest Support 47 | 20 20 20 28 28 28 28 28 47 47 Greatest Overweight (x) 7 | 2 2 1 3 1 1 1 2 7 1 Average Overweight (x) 1 | . . 1 1 1 1 1 1 . . Largest Inventory Capacity 15 | 8 15 15 15 15 15 15 15 15 15 Average Capacity 14 | 6 13 15 15 15 15 15 15 15 13 Most Carried 15 | 5 12 15 15 15 15 15 15 15 15 Average Carried 13 | 2 7 13 14 15 14 14 14 13 13 Final Capacity 15 | 8 15 15 15 15 15 15 15 15 5 Final Carried 15 | 1 12 14 15 15 15 15 15 15 5 Class Distribution -------------------- 65% | Mutant 29% | Gunner 3% | Bothacker-Mutant Dominant Class ---------------- Mutant | -10/Materials Mutant | -10/Mines Mutant | -9/Materials Mutant | -9/Mines Mutant | -9/Exiles Mutant | -8/Mines Gunner | -8/Materials Mutant | -8/Garrison Bothacker-Mutant | -8/Materials Resources | -11 -10 -10 -9 -9 -9 -8 -8 -8 -8 ----------- Run | Yrd Mat Min Mat Min Exi Min Mat Gar Mat Matter Collected 2774 | 225 380 362 473 110 . 96 384 744 . Remotely . | . . . . . . . . . . Salvage Created 4695 | . 434 278 1463 195 . 231 1435 659 . Parts 345 | . 37 21 92 18 . 13 107 57 . Haulers Intercepted 5 | . . . 3 . . . 2 . . Recyclers Shooed 5 | . 1 . . 3 . . 1 . . Parts Field Recycled . | . . . . . . . . . . Retrieved Matter . | . . . . . . . . . . Parts Self-Destructed . | . . . . . . . . . . Prevented . | . . . . . . . . . . Kills | -11 -10 -10 -9 -9 -9 -8 -8 -8 -8 ------- Run | Yrd Mat Min Mat Min Exi Min Mat Gar Mat Combat Hostiles Destroyed 126 | . 12 5 24 15 . 8 30 32 . Melee 8 | . . . 4 . . . . 4 . Guns 32 | . 5 2 10 . . . 10 5 . Cannons 38 | . 2 3 8 6 . 2 11 6 . AOE 47 | . 5 . 1 9 . 6 9 17 . Classes Destroyed 15 | . 7 1 3 . . . 2 2 . Worker 15 | . 2 1 2 . . 2 8 . . Builder 4 | . 1 . 1 . . . 2 . . Tunneler 2 | . . 2 . . . . . . . Hauler 5 | . . . 3 . . . 2 . . Recycler 10 | . 2 . 3 1 . . 4 . . Mechanic 3 | . . . 1 . . . 2 . . Operator 4 | . 2 . . . . . 2 . . Drone 1 | . . . . . . . 1 . . Watcher 11 | . 1 . 4 . . . 5 1 . Swarmer 54 | . 9 . 5 15 . 5 13 7 . Saboteur 8 | . . . . . . . . 8 . Grunt 38 | . 3 5 11 . . 5 10 4 . Sentry 19 | . . . 8 . . . 5 6 . Hunter 6 | . . . . . . . 1 5 . Programmer 2 | . . . . . . . . 2 . Best Kill Streak 8 | . 3 3 5 4 . 3 7 8 . Combat Bots Only 8 | . 3 3 5 4 . 3 6 8 . Max Kills in Single Turn 6 | . 3 1 2 4 . 2 4 6 . Gunslinging . | . . . . . . . . . . Exploded 6 | . 3 . 1 3 . 2 4 6 . Melee 1 | . . . 1 . . . . 1 . Uniques/NPCs Destroyed . | . . . . . . . . . . Combat | -11 -10 -10 -9 -9 -9 -8 -8 -8 -8 -------- Run | Yrd Mat Min Mat Min Exi Min Mat Gar Mat Hostile Shots Fired 544 | . 44 15 129 23 . 13 50 270 . Missed 131 | . 11 6 32 7 . 2 15 58 . Damage Taken 6492 | . 629 190 1402 143 . 185 507 3139 297 Core 1001 | . 73 75 305 16 . 29 73 430 . Absorbed by Shields 9 | . . . . . . . . 9 . Core Remaining (%) 50 | 100 . 40 . . . 12 . . . Volleys Fired 307 | . 53 19 81 16 . 13 67 58 . Largest 3 | . 2 2 2 2 . 2 3 3 . Hottest 225 | . 90 80 136 136 . 136 195 225 . Shots Fired 591 | . 102 38 129 32 . 25 172 93 . Gun 310 | . 73 18 65 . . 4 93 57 . Cannon 232 | . 14 20 64 27 . 16 70 21 . Launcher 49 | . 15 . . 5 . 5 9 15 . Special . | . . . . . . . . . . Kinetic 194 | . 73 18 62 . . 4 11 26 . Thermal 266 | . 14 20 39 27 . 13 101 52 . Explosive 46 | . 15 . . 5 . 5 9 12 . Electromagnetic 85 | . . . 28 . . 3 51 3 . Robot Hit Streak 32 | . 9 14 17 10 . 6 26 32 . Robot Miss Streak 7 | . 3 2 2 1 . 2 7 3 . Penetration Max . | . . . . . . . . . . Secondary Targets 2 | . 1 . . . . . . 1 . Max Gunslinging Chain 1 | . 1 . . . . . . 1 . Shots Hit Robots 411 | . 52 28 103 19 . 12 120 77 . Core Hits 335 | . 25 10 42 18 . 16 120 104 . Critical Kills 1 | . . . 1 . . . . . . Critical Parts Destroyed 3 | . . . 3 . . . . . . Critical Strikes 10 | . . . 5 . . . 2 3 . Burn 1 | . . . 1 . . . . . . Blast 1 | . . . . . . . . 1 . Corrupt 2 | . . . . . . . 2 . . Smash 4 | . . . 4 . . . . . . Impale 2 | . . . . . . . . 2 . Melee Attacks 81 | . 3 . 16 . . . 5 47 10 Impact 19 | . 3 . 16 . . . . . . Slashing . | . . . . . . . . . . Piercing 57 | . . . . . . . 5 42 10 Sneak Attacks 3 | . . . 1 . . . 1 1 . Combat Hostiles . | . . . . . . . . . . Follow-up Attacks . | . . . . . . . . . . Damage Inflicted 11716 | . 964 403 2232 830 . 966 3403 2918 . Guns 3240 | . 515 175 733 . . 14 1034 769 . Cannons 3515 | . 178 228 943 389 . 170 1099 508 . Explosions 3902 | . 271 . 114 441 . 782 1207 1087 . Melee 1059 | . . . 442 . . . 63 554 . Ramming . | . . . . . . . . . . Kinetic 1967 | . 515 175 690 . . 14 65 508 . Thermal 3924 | . 178 228 641 389 . 458 1261 769 . Explosive 3213 | . 271 . . 441 . 449 1172 880 . Electromagnetic 1553 | . . . 459 . . 45 842 207 . Impact 442 | . . . 442 . . . . . . Slashing . | . . . . . . . . . . Piercing 617 | . . . . . . . 63 554 . Highest Corruption 10 | . 10 10 . . . . 1 3 10 Average Corruption 3 | . 10 10 . . . . 1 1 3 Corruption Purged . | . . . . . . . . . . Corruption Blocked . | . . . . . . . . . . Effects 63 | . 15 24 . . . . 3 15 6 Message Errors 16 | . 2 8 . . . . 1 5 . Matter Fused 15 | . 6 4 . . . . . 3 2 Heat Flow Errors 3 | . 1 1 . . . . . . 1 Energy Discharges 12 | . 2 7 . . . . . 2 1 Parts Fused 3 | . . 1 . . . . 1 1 . Data Loss (minor) 6 | . 3 . . . . . . 2 1 Data Loss (major) 4 | . . 1 . . . . 1 1 1 Misfires 1 | . . 1 . . . . . . . Alerts 1 | . . 1 . . . . . . . Weapon Failures 2 | . 1 . . . . . . 1 . Overload Shots 2 | . . . . . . . . 2 . Overflow Damage 375 | . 29 . 173 6 . 54 76 37 . Projectiles 69 | . 16 . . 6 . 1 28 18 . Explosions 94 | . 13 . . . . 53 15 13 . Melee 212 | . . . 173 . . . 33 6 . Knockbacks 6 | . . . 2 . . . . 4 . Impact 2 | . . . 2 . . . . . . Kinetic 4 | . . . . . . . . 4 . Secondary . | . . . . . . . . . . Self-Inflicted Damage 312 | . 53 . . 9 . 75 38 137 . Shots 13 | . 3 . . 1 . 2 1 6 . Rammed . | . . . . . . . . . . Targets Rammed . | . . . . . . . . . . Kicked . | . . . . . . . . . . Crushed . | . . . . . . . . . . Highest Temperature 288 | . 170 246 288 108 . 105 273 276 236 Average Temperature 70 | . 42 84 67 41 . 39 64 91 120 Received Heat Transfer 1107 | . 108 63 453 . . 27 198 258 . Effects 2 | . . 1 . . . . . 1 . Energy Bleed 2 | . . 1 . . . . . 1 . Siege Activations . | . . . . . . . . . . Robots Corrupted 3 | . . . 2 . . . 1 . . Combat Hostiles 1 | . . . 1 . . . . . . Parts Fried 13 | . . . 6 . . . 5 2 . Impact Corruptions 5 | . . . 5 . . . . . . Robots Melted . | . . . . . . . . . . Combat Hostiles . | . . . . . . . . . . Parts Melted 3 | . . . 2 . . . 1 . . Heat Transferred 5815 | . 370 481 1273 703 . 622 1834 532 . Parts Sabotaged 3 | . . . . . . . . 3 . Parts Stolen . | . . . . . . . . . . Parts Stripped . | . . . . . . . . . . Power Chain Reactions 4 | . . . 2 . . . 1 1 . Alert | -11 -10 -10 -9 -9 -9 -8 -8 -8 -8 ------- Run | Yrd Mat Min Mat Min Exi Min Mat Gar Mat Peak Influence 1788 | . 299 182 580 622 . 319 591 1788 879 Initial 871 | . . 62 1 182 . . 46 365 871 Average 440 | . 158 87 263 453 . 211 343 931 862 Maximum Alert Level 5 | . 1 . 2 2 . 1 2 5 3 Low Security (%) 26 | 100 67 100 31 . . 46 13 . . Level 1 31 | . 32 . 47 23 . 53 53 7 . Level 2 26 | . . . 20 76 . . 32 38 . Level 3 6 | . . . . . . . . 15 100 Level 4 6 | . . . . . . . . 29 . Level 5 1 | . . . . . . . . 8 . High Security . | . . . . . . . . . . Max Security . | . . . . . . . . . . Squads Dispatched 6 | . 1 . 2 . . . 2 . 1 Investigation 2 | . . . 1 . . . 1 . . Extermination . | . . . . . . . . . . Reinforcement 4 | . 1 . 1 . . . 1 . 1 Assault . | . . . . . . . . . . Garrison . | . . . . . . . . . . Intercept . | . . . . . . . . . . Searches Triggered . | . . . . . . . . . . Construction Impeded . | . . . . . . . . . . Haulers Reinforced . | . . . . . . . . . . Active Scanning Responses . | . . . . . . . . . . Cargo Convoy Interrupts . | . . . . . . . . . . Stealth | -11 -10 -10 -9 -9 -9 -8 -8 -8 -8 --------- Run | Yrd Mat Min Mat Min Exi Min Mat Gar Mat Distress Signals 4 | . 1 . 1 . . . 2 . . Communications Jammed 8 | . . . . . . . . 8 . Distress Signals 8 | . . . . . . . . 8 . Times Spotted 158 | . 21 5 38 14 . 8 40 32 . Peak Tracking Total 8 | . 4 2 6 4 . 3 5 8 . Tactical Retreats 6 | . 1 . 3 . . . 1 1 . Traps | -11 -10 -10 -9 -9 -9 -8 -8 -8 -8 ------- Run | Yrd Mat Min Mat Min Exi Min Mat Gar Mat Traps Triggered 9 | . . 1 1 . . . 2 5 . Indirectly . | . . . . . . . . . . Trap Hack Attempts 62 | . . . 20 . . . 42 . . Triggered 1 | . . . . . . . 1 . . Disarmed . | . . . . . . . . . . Reprogrammed 5 | . . . 3 . . . 2 . . Reused 2 | . . . . . . . 2 . . Traps Extracted 4 | . . 4 . . . . . . . Installed . | . . . . . . . . . . Triggered 2 | . . . . . . . 2 . . Most Traps Carried 4 | . . 4 4 4 4 4 4 4 4 Machines | -11 -10 -10 -9 -9 -9 -8 -8 -8 -8 ---------- Run | Yrd Mat Min Mat Min Exi Min Mat Gar Mat Machines Disabled 29 | . 3 . 8 4 . 2 1 11 . Max in Single Turn 4 | . 1 . 4 2 . 2 1 2 . Garrison Relay 5 | . . . . . . . . 5 . Phase Generator 1 | . . . . . . . . 1 . Machines Repaired . | . . . . . . . . . . Machines Dismantled . | . . . . . . . . . . Machines Sabotaged . | . . . . . . . . . . Overloaded Fab Kills . | . . . . . . . . . . Hacking | -11 -10 -10 -9 -9 -9 -8 -8 -8 -8 --------- Run | Yrd Mat Min Mat Min Exi Min Mat Gar Mat Machines Accessed 34 | . 8 1 8 1 2 . 9 5 . Terminals 29 | . 8 . 7 1 . . 8 5 . Fabricators . | . . . . . . . . . . Repair Stations . | . . . . . . . . . . Recycling Units . | . . . . . . . . . . Scanalyzers 1 | . . . 1 . . . . . . Garrison Access 1 | . . . . . . . 1 . . Total Hacks 69 | . 19 1 20 2 2 . 14 11 . Successful 29 | . 8 1 8 . 2 . 6 4 . Failed 40 | . 11 . 12 2 . . 8 7 . Catastrophic 12 | . 1 . 2 2 . . 4 3 . Database Lockouts . | . . . . . . . . . . Manual 49 | . 16 . 18 2 1 . 10 2 . Terminals 63 | . 19 . 18 2 . . 13 11 . Fabricators . | . . . . . . . . . . Repair Stations . | . . . . . . . . . . Recycling Units . | . . . . . . . . . . Scanalyzers 2 | . . . 2 . . . . . . Garrison Access 1 | . . . . . . . 1 . . Terminal Hacks 12 | . 2 1 1 . 2 . 2 4 . Record 2 | . . . . . 1 . 1 . . Prototype ID Bank 1 | . . . . . . . 1 . . Open Door 2 | . . 1 . . . . . 1 . Emergency Access Points 1 | . . . . . . . . 1 . Terminal Index 2 | . 1 . 1 . . . . . . Locate Traps 1 | . 1 . . . . . . . . Garrison Registry 1 | . . . . . . . . 1 . Patrol Navigation 1 | . . . . . . . . 1 . Derelict Proto ID Bank 1 | . . . . . 1 . . . . Fabricator Hacks . | . . . . . . . . . . Repair Station Hacks . | . . . . . . . . . . Recycling Unit Hacks . | . . . . . . . . . . Scanalyzer 2 | . . . 2 . . . . . . Insert Component 1 | . . . 1 . . . . . . Analyze 1 | . . . 1 . . . . . . Garrison Access Hacks 1 | . . . . . . . 1 . . Unlock Access 1 | . . . . . . . 1 . . Unauthorized Hacks 14 | . 6 . 5 . . . 3 . . Terminals 14 | . 6 . 5 . . . 3 . . Assimilate 7 | . 3 . 3 . . . 1 . . Botnet 3 | . 2 . 1 . . . . . . Operators 4 | . 1 . 1 . . . 2 . . Fabricators . | . . . . . . . . . . Repair Stations . | . . . . . . . . . . Recycling Units . | . . . . . . . . . . Scanalyzers . | . . . . . . . . . . Garrison Access . | . . . . . . . . . . Data Cores Recovered 2 | . 1 . . . . . 1 . . Used 1 | . 1 . . . . . . . . Hacking Detections 21 | . 7 . 4 1 . . 7 2 . Full Trace Events 4 | . 1 . 2 1 . . . . . Feedback Events . | . . . . . . . . . . Feedback Blocked . | . . . . . . . . . . Robot Schematics Acquired . | . . . . . . . . . . Robots Built . | . . . . . . . . . . Authchips . | . . . . . . . . . . Time . | . . . . . . . . . . Total Robot Build Rating . | . . . . . . . . . . Part Schematics Acquired 1 | . . . 1 . . . . . . Parts Built . | . . . . . . . . . . Authchips . | . . . . . . . . . . Time . | . . . . . . . . . . Total Part Build Rating . | . . . . . . . . . . Parts Repaired . | . . . . . . . . . . Time . | . . . . . . . . . . Parts Recycled . | . . . . . . . . . . Recycled Matter . | . . . . . . . . . . Retrieved Matter . | . . . . . . . . . . Retrieved Components . | . . . . . . . . . . Parts Scanalyzed 1 | . . . 1 . . . . . . Part Schematics Acquired 1 | . . . 1 . . . . . . Parts Damaged . | . . . . . . . . . . Bothacking | -11 -10 -10 -9 -9 -9 -8 -8 -8 -8 ------------ Run | Yrd Mat Min Mat Min Exi Min Mat Gar Mat Used RIF Installer 2 | . . . . . . . . 2 . Signal Jammer 1 | . . . . . . . . 1 . Robots Hacked 2 | . . . . . . . . 2 . Non-combat . | . . . . . . . . . . Combat 2 | . . . . . . . . 2 . Robot Hacks Applied 2 | . . . . . . . . 2 . disrupt_area 1 | . . . . . . . . 1 . overwrite_iff 1 | . . . . . . . . 1 . Relay Couplers Released 21 | . . . . . . . . 21 . Machine Destruction 21 | . . . . . . . . 21 . Attached 2 | . . . . . . . . 2 . Fabnet Peak Effective % . | . . . . . . . . . . Robots Rewired 3 | . . . . . . . . 3 . Allies Hacked 3 | . . . . . . . . 3 . Hacks Repelled . | . . . . . . . . . . Allies | -11 -10 -10 -9 -9 -9 -8 -8 -8 -8 -------- Run | Yrd Mat Min Mat Min Exi Min Mat Gar Mat Total Allies 9 | . . . 1 4 . . . 4 . Largest Group 4 | . . . 1 4 4 1 1 3 . Highest-Rated Group 82 | . . . 10 71 71 16 16 82 . Highest-Rated Ally 31 | . . . 10 31 31 16 16 31 . Total Orders . | . . . . . . . . . . Ally Attacks 21 | . . . . . . 7 1 13 . Total Damage 202 | . . . . . . 30 13 159 . Kills 3 | . . . . . . 2 . 1 . Allies Corrupted 1 | . . . . . . . . 1 . Allies Melted . | . . . . . . . . . . Intel | -11 -10 -10 -9 -9 -9 -8 -8 -8 -8 ------- Run | Yrd Mat Min Mat Min Exi Min Mat Gar Mat Robot Analysis Total . | . . . . . . . . . . Derelict Logs Recovered 2 | . . 1 . 1 . . . . . Drone Launches . | . . . . . . . . . . Drone Recoveries . | . . . . . . . . . . Exploration | -11 -10 -10 -9 -9 -9 -8 -8 -8 -8 ------------- Run | Yrd Mat Min Mat Min Exi Min Mat Gar Mat Turns Passed 8595 | 40 958 582 1291 755 243 449 2155 1828 294 Spaces Moved 5661 | 38 769 503 837 610 211 391 1233 958 111 Core 19 | 18 . . . . . . . 1 . Treads 538 | . . . . . . . . 455 83 Legs 28 | . . . . . . . . . 28 Wheels 5076 | 20 769 503 837 610 211 391 1233 502 . Hover . | . . . . . . . . . . Flight . | . . . . . . . . . . Fastest Speed 50 | 50 80 95 95 110 110 100 95 100 120 Average Speed 111 | 73 91 95 109 110 110 100 109 140 154 Slowest Speed 400 | 150 110 95 135 110 110 110 115 400 190 Overloaded Moves . | . . . . . . . . . . Propulsion Burnouts . | . . . . . . . . . . Robots Hopped . | . . . . . . . . . . Cave-ins Triggered 2 | . 1 . . . . . . . 1 Exploration Rate (%) 69 | 3 91 94 69 97 60 94 84 97 8 Regions Visited 9 Branch Regions 4 Pre-discovered Areas 1 | . . . . . 1 . . . . Known Exits Taken 1 | . . . . . . . 1 . . Unknown Exits Taken 7 | 1 1 1 1 1 1 1 . . . Scrap Searched 3 | . . 1 . 1 . 1 . . . Spaces Dug 61 | . 47 . . . . . 4 . 10 Terrain Destroyed 517 | . 91 . 53 49 . 47 67 200 10 Melee 15 | . 1 . . . . . 4 . 10 Projectile 4 | . . . . . . . 4 . . AOE 498 | . 90 . 53 49 . 47 59 200 . Terrain Rammed . | . . . . . . . . . . Walls Destroyed . | . . . . . . . . . . Machines Disabled . | . . . . . . . . . . Actions | -11 -10 -10 -9 -9 -9 -8 -8 -8 -8 --------- Run | Yrd Mat Min Mat Min Exi Min Mat Gar Mat Total 7294 | 48 913 571 1055 659 222 420 1893 1296 217 Wait 817 | . 61 22 45 28 10 9 477 79 86 Move 5651 | 37 767 502 836 609 210 390 1233 956 111 Hop . | . . . . . . . . . . Pick Up 100 | 5 15 10 16 . 1 1 16 34 2 Fast Attach 20 | 2 . . 9 . . 1 6 . 2 Attach 50 | 4 4 4 12 . . . 5 21 . Detach 2 | . . . . . . . . 2 . Swap 84 | . 9 6 11 6 . 4 19 26 3 Drop 58 | . . 8 9 . 1 2 23 12 3 Fire 307 | . 53 19 81 16 . 13 67 58 . Melee 81 | . 3 . 16 . . . 5 47 10 Ram . | . . . . . . . . . . Kick . | . . . . . . . . . . Crush . | . . . . . . . . . . Escape Stasis 17 | . 1 . . . . . . 16 . Rewire 45 | . . . . . . . . 45 . Trap 62 | . . . 20 . . . 42 . . Miscellaneous . | . . . . . . . . . . Route ------- -11/Scrapyard -10/Materials (discovered 4 exits: *Mat x3 / *Min) -10/Mines (discovered 2 exits: *Mat x2) -9/Materials (discovered 2 exits: *Mat / *Min) -9/Mines (discovered 4 exits: *Mat x2 / *Exi / [*Zio]) -9/Exiles -8/Mines -8/Materials (discovered 5 exits: [*Fac x2] / *Sto x2 / Gar) -8/Garrison (discovered 3 exits: [*Mat x3]) -8/Materials History --------- Turn | Location | Event 10 | -11/Scrapyard | Discovered new exit (range 16) 41 | -11/Scrapyard | Entered Materials 110 | -10/Materials | Discovered new exit (range 12) 272 | -10/Materials | Discovered new exit (range 4) 317 | -10/Materials | Build established: Mutant 453 | -10/Materials | Discovered new exit (range 4) 543 | -10/Materials | Discovered new exit (range 4) 619 | -10/Materials | Crushed by falling debris 620 | -10/Materials | System corruption reached 10% 650 | -10/Materials | Lost 3 parts (1p1u1w) 999 | -10/Materials | Entered Mines 1021 | -10/Mines | Met a Derelict who couldn't figure out how to use a Trap Extractor 1121 | -10/Mines | Discovered new exit (range 10) 1168 | -10/Mines | Discovered new exit (range 3) 1231 | -10/Mines | Learned Materials terminal intel 1310 | -10/Mines | Core integrity fell below 50% 1444 | -10/Mines | Found a hidden stash of uninstalled traps 1581 | -10/Mines | Entered Materials 1581 | -9/Materials | Evolved 2 slots: Utility x2 1582 | -9/Materials | Loaded intel: 12 terminal locations 1766 | -9/Materials | Lost 4 parts (1p2n1w) 1901 | -9/Materials | Core integrity fell below 50% 1980 | -9/Materials | Discovered new exit (range 16) 2342 | -9/Materials | Discovered new exit (range 3) 2396 | -9/Materials | Lost 3 parts (1n2w) 2872 | -9/Materials | Entered Mines 2933 | -9/Mines | Discovered new exit (range 9) 3097 | -9/Mines | Core integrity fell below 20% 3225 | -9/Mines | Received a Rocket Launcher from a helpful Derelict 3246 | -9/Mines | Deemed a non-threat by the Exiles lab entrance 3246 | -9/Mines | Discovered new exit (range 5) 3440 | -9/Mines | Received a Mining Laser from a helpful Derelict 3522 | -9/Mines | Discovered new exit (range 5) 3526 | -9/Mines | Assisted by bots powering up and referring to "LRC-V3" 3578 | -9/Mines | A Derelict revealed a hidden shortcut to a safe place 3627 | -9/Mines | Entered Exiles 3627 | -9/Exiles | Accompanied by 4 allies 3654 | -9/Exiles | Met 8R-AWN 3673 | -9/Exiles | Met EX-HEX 3706 | -9/Exiles | Met EX-BIN 3721 | -9/Exiles | Aligned with FarCom system 3722 | -9/Exiles | Given EX-Vault access code 3747 | -9/Exiles | Opened EX-Vault 3753 | -9/Exiles | Found Superbattery 3777 | -9/Exiles | Warned to stay clear of 0b10 Research branches 3807 | -9/Exiles | Met EX-DEC 3813 | -9/Exiles | Learned location of Zion (-7) 3847 | -9/Exiles | Discovered new exit (range 11) 3870 | -9/Exiles | Left Exiles lab with Superbattery 3870 | -9/Exiles | Entered Mines 3870 | -8/Mines | Accompanied by 3 allies 4125 | -8/Mines | Discovered new exit (range 7) 4319 | -8/Mines | Entered Materials 4319 | -8/Materials | Accompanied by 1 ally 4319 | -8/Materials | Evolved 2 slots: Utility x1, Weapon x1 4320 | -8/Materials | Identified exit to Storage 4472 | -8/Materials | Discovered exit to Storage (range 15) 4723 | -8/Materials | Discovered new exit (range 15) 4995 | -8/Materials | Build established: Gunner 6022 | -8/Materials | Discovered new exit (range 15) 6472 | -8/Materials | Identified exit to Garrison 6474 | -8/Materials | Entered Garrison 6503 | -8/Garrison | Installed Relay Interface Framework 6566 | -8/Garrison | Triggered checkpoint 6615 | -8/Garrison | Garrison Relay disabled 6697 | -8/Garrison | Triggered checkpoint 6952 | -8/Garrison | Lost 8 parts (1p1n3u3w) 7087 | -8/Garrison | Expanded RIF knowledge: Signal Jamming 7093 | -8/Garrison | Discovered new exit (range 12) 7172 | -8/Garrison | Triggered checkpoint 7184 | -8/Garrison | Garrison Relay disabled 7284 | -8/Garrison | Triggered checkpoint 7322 | -8/Garrison | Core integrity fell below 50% 7384 | -8/Garrison | Lost 6 parts (2p1n3w) 7401 | -8/Garrison | Destroyed 7 combat bots 7466 | -8/Garrison | Build established: Mutant 7506 | -8/Garrison | Triggered checkpoint 7507 | -8/Garrison | Garrison Relay disabled 7597 | -8/Garrison | Destroyed 8 combat bots 7724 | -8/Garrison | Garrison Relay disabled 7754 | -8/Garrison | Discovered new exit (range 9) 7848 | -8/Garrison | Phase Generator disabled 8015 | -8/Garrison | Discovered new exit (range 45) 8015 | -8/Garrison | Discovered new exit (range 65) 8015 | -8/Garrison | Discovered new exit (range 37) 8036 | -8/Garrison | Garrison Relay disabled 8161 | -8/Garrison | Core integrity fell below 20% 8208 | -8/Garrison | Lost 3 allies 8302 | -8/Garrison | Entered Materials 8565 | -8/Materials | Crushed by falling debris 8565 | -8/Materials | System corruption reached 10% 8596 | -8/Materials | Lost 11 parts (1p7u3w) 8596 | -8/Materials | Self-destructed Last Messages --------------- 08565_ Crushed by falling debris. 08565_ Relay Coupler [Grunt] destroyed. 08565_ System corrupted by crushing effect (+1). 08565_ Lance destroyed. 08565_ System corrupted by crushing effect (+5). 08565_ Lrg. Storage Unit destroyed. 08565_ Relay Coupler [NC] crushed and broken. 08565_ Adv. Trap Extractor crushed and broken. 08565_ Mni. Grenade Launcher crushed and broken. 08565_ Authchip [R/Combat] crushed and broken. 08565_ Variable Charge Gun crushed and broken. 08565_ Imp. Coolant Injector crushed and broken. 08565_ Deuterium Engine crushed and broken. 08565_ Imp. Transmission Jammer crushed and broken. 08565_ System corrupted by crushing effect (+1). 08565_ Remote Datajack crushed. 08567_ System corrupted: Substantial component data lost. 08588_ System corrupted: Component data lost. Map ----- +----------------------------------------------------+ | ?????????????????????????????????????????????????? | | ?????????????????????????????????????????????????? | | ?????????????????????????????????????????????????? | | ?????????????????????????????????????????????????? | | ?????????????????????????????????????????????????? | | ?????????????????????????????????????????????????? | | ?????????????????????????????????????????????????? | | ?????????????????????????????????????????????????? | | ?????????????????????????????????????????????????? | | ?????????????????????????????????????????????????? | | ?????????????????????????????????????????????????? | | ?????????????????????????????????????????????????? | | ?????????????????????????????????????????????????? | | ?????????????????????????????????????????????????? | | ?#########???????????????????????????????????????? | | ?# ???????????###??????????????????????????? | | ?# ??????Y????? ??????????????????????????? | | ?# ????????????? ??????????????????????????? | | ?# #?????????????? s ??????????????????????????? | | ?# #??????????????# #??????????????????????????? | | ?# #??????????????# #????????#?????????????????? | | ?# #??????????????# #???????x#?????????????????? | | ?# #??????????????# #??????? +?????????????????? | | ?# #??????????????#s#?????? #x????????????????? | | ## #??????????????# #?###?? #?????????????????? | | ## #??????????????# #?#@## #?????????????????? | | ## #??????????????# #?#### #?????????????????? | | ## #??????????????# ###### #?????????????????? | | ## ##???????###???# ==## #?????????????????? | | # #??????##"##### #? #?????????????????? | | # #??????# ! # ==#?? #?????????????????? | | + #??????# # ==#?? #?????????????????? | | # #??????# """ + !!#??? #?????????????????? | | # #????### """ # !!#??? #?????????????????? | | ## #######"# """ # #####????#?????????????????? | | ## # * #" # #??????????????????????????? | | ## # ######### #??????????????????????????? | | ## + = """#???????# ?????H????????????????????? | | ## # """#???????###??????????????????????????? | | ?# #* """#????????????????????????????????????? | | ?# # #????????????????????????????????????? | | ?############????????????????????????????????????? | | ?????????????????????????????????????????????????? | | ?????????????????????????????????????????????????? | | ?????????????????????????????????????????????????? | | ?????????????????????????????????????????????????? | | ?????????????????????????????????????????????????? | | ?????????????????????????????????????????????????? | | ?????????????????????????????????????????????????? | | ?????????????????????????????????????????????????? | +----------------------------------------------------+ Best States ------------- Heat Dissipation 45 Energy Generation 19 Energy Capacity 315 Matter Stores 300 Matter Capacity 300 Sight Range 16 Terrain Scan Density 10 Jamming Range 14 Armor Coverage 600 Utility Shielding 66 Weapon Cycling 20 Evasion (%) 55 Targeting Accuracy 16 Recoil Reduction 2 Offensive Hacking 10 Relay Coupler Types 1 Relay Coupler Value 31 Authchip Count 2 Trap Extractor Capacity 14 Item Schematics ----------------- Adv. Targeting Computer | -9/Materials | Scanalyzed Robot Schematics ------------------ None Fabricated ------------ Nothing Alien Tech Used ----------------- None Achievements -------------- Hehehe Challenges ------------ None Game ------ Seed ReflectiveFlyingMediator Manual? 0 Play Time 01:22:29 Cumulative 86.0 hours Start 2024.10.30 @ 17:36:28 End 2024.10.30 @ 20:16:22 Sessions 1 Manual Loads 0 Difficulty Rogue Special Mode None Game No. 141 Rogue 140 Adventurer 1 Explorer 0 Win Type - Total 0 Types 0/0/0/0/0/0/0/0/0 Lore% 50 Gallery% 52 Achievement% 44 Wizard Run 0 Options --------- Layout 1 ASCII 0 Keyboard 0 Movement Mouse Keybinds 0 Fullscreen 2 Font 24/Terminus Map View 50x35 Zoom Use 0% Tactical HUD 1 Map Filters NONE Filters NONE Steam 1 RUN: 6723c567-a430-453b-887c-1a89c1362cb7